bitfinex-derivatives/quotes_ETHF0:USTF0_20260209
["timestamp","ask_amount","ask_price","bid_price","bid_amount"]
[1770642328440,0.97118098,2031.5,2031.1,0.76324555]
[1770642328644,2.93313966,2031.4,2031.1,0.76324555]
[1770642328835,46.89518413,2031.6,2031.2,1.74581813]
[1770642329042,3.9034381,2031.6,2031.2,1.74581813]
[1770642329243,0.97029844,2031.5,2031.2,0.00454844]
[1770642329444,0.97029844,2031.5,2031.0,1.74581813]
[1770642329644,0.97029844,2031.5,2031.1,1.74581813]
[1770642330239,1.63374899,2031.6,2031.3,1.74581813]
[1770642330436,1.62846201,2031.4,2030.2,1.74581813]
[1770642330636,1.62846201,2031.4,2029.9,7.59941933]
[1770642330637,2.93313966,2031.2,2030.4,1.74581813]
[1770642330842,1.63374899,2031.6,2030.5,1.74581813]
[1770642331141,0.00528698,2031.6,2030.7,1.74581813]
[1770642331340,1.63374899,2031.6,2031.1,1.74581813]
[1770642331542,1.63374899,2031.6,2031.1,1.7511312]
[1770642332141,0.00528698,2031.6,2031.1,6.6719312]
[1770642332438,0.00528698,2031.6,2031.2,1.74581813]
[1770642333346,0.00528698,2031.6,2031.4,1.74581813]
[1770642333546,0.00073847,2031.6,2031.4,1.74581813]
[1770642334037,1.62920048,2031.6,2031.2,1.74581813]
[1770642334242,1.62920048,2031.6,2031.2,6.66661813]
[1770642336045,1.62920048,2031.6,2031.3,1.74581813]
[1770642336448,1.62920048,2031.6,2031.2,1.74581813]
[1770642336648,1.62920048,2031.6,2031.3,1.74581813]
[1770642338847,1.62920048,2031.6,2031.1,0.00531307]
[1770642339050,1.62920048,2031.6,2031.2,1.74581813]
[1770642339953,1.62920048,2031.6,2031.1,0.00531307]
[1770642340543,1.62920048,2031.6,2031.1,1.7511312]
[1770642341048,3.56928669,2031.5,2031.1,1.7511312]
[1770642341245,1.94082468,2031.5,2031.1,1.7511312]
[1770642341445,1.94082468,2031.5,2031.2,1.74581813]
[1770642342647,0.00073847,2031.6,2031.4,1.74581813]
[1770642343245,0.00073847,2031.6,2031.5,6.66661813]
[1770642344543,1.94082468,2031.9,2031.6,1.74581813]
[1770642345355,2.26859033,2032.5,2031.7,2.22893884]
[1770642345650,0.00401061,2032.5,2031.8,2.22893884]
[1770642345848,0.00401061,2032.5,2032.1,2.22893884]
[1770642346049,4.15042636,2032.4,2032.0,7.14973884]
[1770642346244,1.94082468,2032.4,2032.1,2.22893884]
[1770642346453,43.02335771,2032.6,2032.3,2.22893884]
[1770642346454,40.8,2032.6,2032.3,2.22893884]
[1770642346655,1.94082468,2032.7,2032.3,2.22893884]
[1770642346850,2.22398035,2032.7,2031.7,2.22893884]
[1770642347050,2.90940895,2032.0,2031.2,2.22893884]
[1770642347257,2.22398035,2031.9,2031.2,2.22893884]
[1770642347653,0.00582382,2031.9,2031.2,2.22893884]
[1770642349460,2.31507733,2032.2,2031.2,2.22893884]
[1770642350156,2.31507733,2032.4,2031.2,2.22893884]
[1770642350358,2.31507733,2032.2,2031.2,2.22893884]
[1770642350558,4.18959545,2032.1,2031.2,2.22893884]
[1770642350758,4.18959545,2032.1,2031.4,2.22893884]
[1770642350959,2.31507733,2032.3,2031.4,2.22893884]
[1770642351158,4.18877885,2032.2,2031.4,2.22893884]
[1770642351357,0.00352296,2032.4,2031.4,2.22893884]
[1770642351659,2.31860029,2032.4,2031.4,2.22893884]
[1770642352250,2.31860029,2032.4,2031.6,2.22893884]
[1770642354057,0.00352296,2032.4,2031.6,2.22893884]
[1770642355059,0.00352296,2032.4,2031.8,2.22893884]
[1770642359459,2.31860029,2032.4,2031.8,2.22893884]
[1770642360067,0.00352296,2032.4,2031.8,2.47524884]
[1770642361667,2.31507733,2033.2,2032.4,0.24625]
[1770642361967,2.31507733,2033.2,2032.5,2.22893884]
[1770642362261,2.31507733,2033.3,2032.7,2.22893884]
[1770642362463,39.41732446,2034.0,2032.9,2.22893884]
[1770642362464,2.31507733,2033.7,2032.9,2.22893884]
[1770642362771,2.31507733,2033.6,2032.9,2.58718172]
[1770642363065,0.00421696,2033.7,2033.0,2.22893884]
[1770642364163,2.31929429,2033.7,2033.0,2.22893884]
[1770642364362,0.00421696,2033.7,2033.0,2.22893884]
[1770642367866,2.31507733,2034.2,2033.4,2.22893884]
[1770642368766,2.31507733,2034.4,2033.4,2.22893884]
[1770642368969,2.31507733,2034.4,2033.3,0.24614]
[1770642368970,2.31507733,2034.1,2033.3,0.24614]
[1770642369171,2.31507733,2034.1,2033.2,2.22893884]
[1770642369571,2.31507733,2034.0,2033.2,2.22893884]
[1770642370565,2.31507733,2034.0,2033.3,0.24614]
[1770642371575,2.31507733,2034.0,2033.3,2.22893884]
[1770642372572,2.31507733,2033.8,2032.9,0.00584345]
[1770642372777,2.31507733,2033.5,2032.4,2.22893884]
[1770642373874,2.31507733,2033.5,2032.4,2.23359096]
[1770642374979,2.31507733,2033.3,2032.4,2.23359096]
[1770642376378,2.31507733,2033.3,2032.4,2.57489871]
[1770642376778,40.8,2033.4,2032.6,2.49292784]
[1770642376981,2.49596097,2034.0,2033.2,2.49292784]
[1770642377580,43.29596097,2034.0,2033.2,2.49292784]
[1770642378171,2.49596097,2034.0,2033.2,2.49292784]
[1770642378876,2.49596097,2034.0,2032.7,6.05699]
[1770642378877,2.49596097,2034.0,2033.4,2.69984922]
[1770642379075,2.51966252,2034.2,2033.4,2.69984922]
[1770642380183,2.51966252,2034.2,2033.6,2.69984922]
[1770642381271,43.31966252,2034.3,2033.6,2.69984922]
[1770642381475,43.96204447,2035.0,2034.0,2.69984922]
[1770642381683,2.51966252,2035.2,2034.2,2.69984922]
[1770642381982,2.51966252,2035.1,2034.4,2.69984922]
[1770642382478,2.52379667,2035.1,2034.4,2.70587622]
[1770642383282,2.51966252,2035.4,2034.6,2.69984922]
[1770642384179,2.52412327,2035.4,2034.6,2.69984922]
[1770642384372,2.51966252,2035.3,2034.6,2.69984922]
[1770642384578,2.51966252,2035.3,2034.5,2.94584922]
[1770642386982,2.51966252,2035.2,2034.1,2.69984922]
[1770642387382,7.71963517,2035.2,2034.1,2.69984922]
[1770642387584,2.51966252,2035.1,2034.1,2.69984922]
[1770642387787,2.51966252,2035.1,2033.9,2.94591922]
[1770642388386,2.51966252,2035.1,2033.9,2.94944673]
[1770642389084,5.16010142,2035.0,2033.9,2.70337673]
[1770642389288,2.51966252,2034.9,2033.9,2.70337673]
[1770642392988,2.51966252,2034.8,2033.9,2.70337673]
[1770642395987,2.52412327,2035.4,2034.5,2.69984922]
[1770642397190,0.00446075,2035.4,2034.5,2.69984922]
[1770642397487,0.00446075,2035.4,2034.7,2.69984922]
[1770642397690,0.00446075,2035.4,2034.6,0.24598]
[1770642397691,2.51966252,2035.9,2034.9,2.69984922]
[1770642398194,40.8,2035.8,2034.9,2.69984922]
[1770642398388,43.79811975,2036.5,2035.1,2.69984922]
[1770642398389,2.92194097,2036.4,2035.1,2.69984922]
[1770642398592,2.51966252,2036.1,2035.1,2.69984922]
[1770642398885,40.8,2036.0,2035.1,2.69984922]
[1770642399088,2.51966252,2035.9,2035.1,2.69984922]
[1770642399590,40.8,2036.0,2035.1,2.69984922]
[1770642399796,2.51966252,2036.6,2035.3,2.69984922]
[1770642400186,2.51966252,2036.4,2035.5,2.69984922]
[1770642400787,2.52405666,2036.4,2035.5,2.70390324]
[1770642405795,3.44694281,2036.2,2035.5,2.70390324]
[1770642406698,3.44694281,2036.2,2035.1,3.55830718]
[1770642406896,3.44694281,2036.2,2034.7,3.55830718]
[1770642406897,3.44694281,2035.8,2034.7,3.55830718]
[1770642407903,3.44694281,2035.8,2034.7,3.5639005]
[1770642411297,3.44694281,2035.6,2034.7,3.5639005]
[1770642414802,3.44694281,2035.4,2034.7,3.5639005]
[1770642415103,3.44694281,2035.4,2034.5,3.55830718]
[1770642416103,3.44694281,2035.2,2034.5,0.00595158]
[1770642417004,3.44694281,2035.0,2034.1,3.55830718]
[1770642418204,3.44694281,2035.0,2034.1,3.5626795]
[1770642420305,3.44694281,2035.2,2034.1,3.5626795]
[1770642422106,3.44694281,2035.0,2034.1,3.5626795]
[1770642430516,6.36787542,2034.8,2033.7,3.55830718]
[1770642430712,3.44694281,2034.7,2033.7,3.55830718]
[1770642431015,44.24694281,2034.6,2033.7,3.55830718]
[1770642431619,44.25276478,2034.6,2033.7,3.56437917]
[1770642432307,3.44694281,2034.5,2033.7,3.56437917]
[1770642441319,3.44694281,2034.5,2033.9,4.49689088]
[1770642444816,3.44694281,2034.5,2033.7,0.00607199]
[1770642444817,4.6764737,2034.4,2033.7,4.50296287]
[1770642445624,7.59740631,2034.4,2033.7,0.00607199]
[1770642445824,4.6764737,2034.3,2033.7,0.00607199]
[1770642446027,4.6764737,2034.2,2033.5,4.49689088]
[1770642446925,4.6764737,2034.2,2033.5,4.502812]
[1770642451519,4.6764737,2034.1,2033.5,4.502812]
[1770642457330,2.92093261,2034.2,2033.5,4.502812]
[1770642457927,4.6764737,2034.9,2034.1,4.49689088]
[1770642459033,4.681443,2034.9,2034.1,4.49689088]
[1770642461023,0.0049693,2034.9,2034.3,4.49689088]
[1770642461225,45.4764737,2035.0,2034.3,4.49689088]
[1770642461425,4.6764737,2035.2,2034.3,4.49689088]
[1770642461927,40.8,2035.1,2034.3,4.49689088]
[1770642462227,0.00634326,2035.1,2034.3,4.49689088]
[1770642462627,40.80634326,2035.1,2034.3,4.49689088]
[1770642463028,0.00634326,2035.1,2034.3,4.49689088]
[1770642463232,0.00634326,2035.1,2034.5,4.49689088]
[1770642464528,4.68281696,2035.1,2034.5,4.49689088]
[1770642466022,4.68281696,2035.1,2034.4,5.57583581]
[1770642466629,0.00634326,2035.1,2034.4,5.57583581]
[1770642467133,5.09274969,2035.1,2034.4,5.57583581]
[1770642469232,5.09274969,2035.1,2034.3,5.32982581]
[1770642473140,5.08640643,2034.9,2034.3,5.32982581]
[1770642478745,5.08640643,2034.7,2034.3,5.32982581]
[1770642483243,0.00634326,2035.1,2034.3,5.32982581]
[1770642483244,0.00634326,2035.1,2034.3,5.57583581]
[1770642483449,5.09274969,2035.1,2034.3,5.57583581]
[1770642483853,45.88640643,2035.0,2034.3,5.57583581]
[1770642484447,5.08640643,2035.0,2034.3,5.57583581]
[1770642485148,5.08640643,2034.9,2034.3,5.57583581]
[1770642485545,5.08640643,2035.0,2034.3,5.57583581]
[1770642487049,5.08640643,2034.9,2034.3,5.57583581]
[1770642487751,5.08640643,2034.7,2034.3,0.24601]
[1770642488150,5.08640643,2034.7,2034.3,5.57583581]
[1770642490849,5.08640643,2034.8,2034.3,5.57583581]
[1770642491647,45.89274969,2035.1,2034.3,5.57583581]
[1770642491947,5.08640643,2035.0,2034.3,5.57583581]
[1770642493455,5.08640643,2034.9,2034.2,5.32982581]
[1770642496754,5.08640643,2034.9,2034.3,6.30393759]
[1770642499255,43.79811975,2035.0,2034.3,6.30393759]
[1770642499451,49.82949189,2035.0,2034.3,6.30393759]
[1770642499750,6.03137214,2034.9,2034.3,6.30393759]
[1770642505557,0.00634326,2035.1,2034.5,6.32355134]
[1770642505751,0.00634326,2035.1,2034.7,6.32355134]
[1770642506150,46.83137214,2035.5,2034.7,6.32355134]
[1770642506349,6.03137214,2035.4,2034.7,6.32355134]
[1770642507158,6.03568263,2035.4,2034.7,6.32355134]
[1770642510656,6.03568263,2035.4,2034.5,2.94480842]
[1770642510657,6.03568263,2035.4,2034.9,6.32355134]
[1770642512157,6.03137214,2035.7,2035.2,0.24591]
[1770642512358,6.03137214,2035.8,2035.3,6.32355134]
[1770642512657,7.75726451,2036.4,2035.3,6.32355134]
[1770642512658,6.03137214,2036.1,2035.3,6.32355134]
[1770642513255,6.03698104,2036.1,2035.3,6.32806343]
[1770642516854,6.03137214,2036.0,2035.3,6.32806343]
[1770642519048,6.03137214,2036.0,2035.3,0.00451209]
[1770642519247,6.03137214,2035.8,2034.9,6.32355134]
[1770642520156,6.03137214,2035.8,2034.9,6.32710499]
[1770642520459,6.03137214,2035.5,2034.9,0.00355365]
[1770642520853,6.03137214,2035.5,2034.7,6.32355134]
[1770642521860,6.03137214,2035.5,2034.7,6.32896907]
[1770642526458,6.67240493,2035.8,2034.9,6.47708792]
[1770642526661,6.67240493,2035.8,2035.1,6.47708792]
[1770642526862,6.67240493,2037.1,2036.1,6.47708792]
[1770642527059,6.67240493,2037.1,2036.3,6.47708792]
[1770642527560,6.67240493,2037.1,2036.2,0.24579]
[1770642527561,6.67240493,2037.3,2036.5,6.47708792]
[1770642527757,6.67664686,2037.3,2036.5,6.48232838]
[1770642528864,6.67664686,2037.3,2036.5,6.79053019]
[1770642529063,1e-08,2037.3,2036.5,6.79053019]
[1770642529765,1e-08,2037.3,2036.7,6.47708792]
[1770642530155,6.67240493,2037.7,2036.9,6.47708792]
[1770642530568,6.67240493,2037.6,2036.9,6.47708792]
[1770642531063,6.67660209,2037.6,2036.9,6.47708792]
[1770642533168,6.67660209,2037.6,2037.1,6.47708792]
[1770642533764,6.67660209,2037.6,2036.9,6.47708792]
[1770642534068,6.67660209,2037.6,2036.8,6.72280792]
[1770642536065,6.67660209,2037.6,2036.6,6.47708792]
[1770642536277,6.67660209,2037.6,2036.5,6.79053019]
[1770642536571,6.67660209,2037.6,2036.5,0.00524046]
[1770642540676,6.67240493,2037.4,2036.5,6.48232838]
[1770642541476,6.67240493,2037.4,2036.7,6.47708792]
[1770642541681,0.00419716,2037.6,2036.7,6.47708792]
[1770642541682,6.67660209,2037.6,2036.7,6.47708792]
[1770642542177,0.00419716,2037.6,2037.1,6.47708792]
[1770642542381,6.67240493,2037.9,2037.1,6.47708792]
[1770642543180,40.8,2038.1,2037.1,6.47708792]
[1770642543181,47.47240493,2038.1,2037.1,6.47708792]
[1770642543382,47.47739737,2038.1,2037.1,6.47708792]
[1770642543582,47.47739737,2038.1,2037.3,6.47708792]
[1770642544680,6.67240493,2038.0,2037.3,6.47708792]
[1770642547084,40.80499244,2038.1,2037.3,6.47708792]
[1770642547284,0.00499244,2038.1,2037.5,6.47708792]
[1770642549480,0.00499244,2038.1,2037.1,6.04382]
[1770642549481,0.00499244,2038.1,2037.7,6.47708792]
[1770642551776,6.67240493,2038.5,2037.7,6.47708792]
[1770642552776,6.67743979,2038.5,2037.7,6.47708792]
[1770642553583,6.67743979,2038.5,2037.6,0.24562]
[1770642553584,6.67743979,2038.5,2037.6,6.72270792]
[1770642553985,6.67743979,2038.5,2037.6,0.24562]
[1770642554487,6.67743979,2038.5,2037.6,6.72270792]
[1770642569404,6.67743979,2038.5,2037.7,6.07106228]
[1770642571407,6.67743979,2038.5,2037.8,6.07106228]
[1770642572407,6.67743979,2038.5,2037.7,2.94480842]
[1770642572605,6.67743979,2038.5,2037.6,9.2614907]
[1770642573304,5.64481713,2038.4,2037.6,9.2614907]
[1770642573510,5.64481713,2038.4,2037.7,6.07106228]
[1770642574405,5.64481713,2038.4,2037.6,3.19042842]
[1770642574601,5.64481713,2038.4,2037.6,9.2614907]
[1770642574813,5.64481713,2038.4,2037.7,6.07106228]
[1770642575310,5.64481713,2038.4,2037.8,6.07106228]
[1770642577311,5.64481713,2038.4,2037.9,6.07106228]
[1770642579216,0.00503486,2038.5,2037.9,9.2614507]
[1770642579519,0.00503486,2038.5,2038.2,6.07106228]
[1770642579718,0.00503486,2038.5,2038.3,6.07106228]
[1770642579918,5.64481713,2038.8,2038.3,6.07106228]
[1770642580115,5.64481713,2038.8,2038.2,2.94943684]
[1770642580419,5.64481713,2038.8,2038.2,6.0756907]
[1770642580613,5.64481713,2038.8,2038.3,6.07106228]
[1770642580813,5.64966734,2038.8,2038.3,6.07106228]
[1770642582716,5.64966734,2038.8,2038.0,2.94480842]
[1770642583019,5.64966734,2038.8,2037.9,9.2614507]
[1770642583718,5.64966734,2038.8,2038.0,6.07106228]
[1770642583914,49.51794383,2038.6,2037.9,0.00542129]
[1770642584114,5.64481713,2038.3,2037.5,9.0158707]
[1770642584314,5.64481713,2038.3,2037.6,6.07106228]
[1770642585221,5.64481713,2038.3,2037.6,6.07537606]
[1770642586917,5.14325333,2038.2,2037.6,6.07537606]
[1770642588724,8.08303579,2038.4,2037.6,6.07537606]
[1770642589024,5.14325333,2038.4,2037.7,4.74775362]
[1770642589725,5.14325333,2038.4,2037.8,4.74775362]
[1770642590321,5.14325333,2038.4,2037.7,2.94480842]
[1770642590526,5.14325333,2038.4,2037.6,4.7520674]
[1770642591823,5.14325333,2038.5,2037.7,4.74775362]
[1770642594829,5.14325333,2038.5,2037.6,7.69687582]
[1770642595027,5.14325333,2038.4,2037.6,4.7520674]
[1770642596026,8.08303579,2037.8,2036.9,9.12651384]
[1770642596231,5.14325333,2037.7,2036.9,4.74775362]
[1770642596432,5.14325333,2037.7,2036.9,4.99345362]
[1770642596630,45.94325333,2037.6,2036.9,4.99345362]
[1770642597031,5.14325333,2037.5,2036.9,4.99345362]
[1770642597427,5.14325333,2037.5,2036.9,4.99749405]
[1770642597627,5.14325333,2037.7,2036.9,4.99749405]
[1770642601335,5.14325333,2037.7,2036.9,4.75179405]
[1770642606239,5.14325333,2037.8,2037.1,4.74775362]
[1770642609535,40.8,2038.0,2037.1,4.74775362]
[1770642609740,5.14325333,2037.9,2037.1,4.74775362]
[1770642610040,5.14325333,2037.9,2037.3,4.74775362]
[1770642610841,5.14325333,2038.1,2037.3,4.74775362]
[1770642612543,5.14325333,2038.1,2037.4,0.24565]
[1770642612742,5.14325333,2038.1,2037.5,4.74775362]
[1770642613441,5.14325333,2038.2,2037.5,4.74775362]
[1770642613848,5.14325333,2038.3,2037.7,4.74775362]
[1770642619656,5.14325333,2038.3,2037.6,4.36146591]
[1770642620056,5.14325333,2038.3,2037.6,0.24562]
[1770642620452,5.14325333,2038.3,2037.6,4.36146591]
[1770642626060,5.14325333,2038.3,2037.2,4.37876022]
[1770642626061,3.95026949,2038.2,2037.2,7.03989377]
[1770642626259,3.95026949,2038.2,2037.2,4.11584591]
[1770642626951,3.95026949,2037.9,2037.0,4.11584591]
[1770642627559,3.95026949,2037.8,2036.9,4.11988634]
[1770642628362,3.95026949,2037.7,2036.9,4.11988634]
[1770642628761,6.88300063,2037.7,2036.9,0.00404043]
[1770642628963,3.95026949,2037.6,2036.9,0.00404043]
[1770642629664,3.95026949,2037.6,2036.9,4.11988634]
[1770642636368,3.95026949,2037.6,2036.6,3.16978786]
[1770642636369,3.95026949,2037.5,2036.7,4.11584591]
[1770642637369,3.95026949,2037.5,2036.7,4.12179486]
[1770642644280,3.95026949,2037.8,2036.9,4.11584591]
[1770642645577,3.95026949,2037.8,2037.1,3.5545363]
[1770642651380,3.95026949,2037.8,2037.3,3.5545363]
[1770642652684,2.93273114,2038.0,2037.3,3.5545363]
[1770642652883,3.42982377,2038.0,2037.3,3.5545363]
[1770642654387,3.42982377,2038.0,2037.5,3.5545363]
[1770642661090,43.8731267,2038.4,2037.7,3.5545363]
[1770642661091,3.42982377,2038.4,2037.7,3.5545363]
[1770642661491,2.93923605,2038.8,2038.1,3.5545363]
[1770642661693,3.42982377,2038.7,2038.1,3.5545363]
[1770642662093,3.42982377,2038.6,2038.1,3.5545363]
[1770642662299,3.42982377,2038.6,2038.3,3.5545363]
[1770642662493,3.42982377,2038.6,2038.3,3.55825238]
[1770642662797,3.43467398,2038.8,2038.3,3.55825238]
[1770642663191,3.42982377,2038.7,2038.3,3.55825238]
[1770642663595,31.748,2039.2,2038.3,3.55825238]
[1770642663596,3.42982377,2039.2,2038.5,3.5545363]
[1770642663894,3.42982377,2039.6,2038.9,3.5545363]
[1770642664493,3.42982377,2039.6,2039.0,0.24545]
[1770642664494,44.23584342,2039.6,2039.0,0.24545]
[1770642664695,3.43584342,2039.6,2039.1,3.5545363]
[1770642665404,3.42982377,2039.9,2039.1,3.5545363]
[1770642666199,3.42982377,2039.9,2039.1,3.85125388]
[1770642666400,3.43472439,2039.9,2039.1,3.85125388]
[1770642666604,0.00490062,2039.9,2039.3,3.5545363]
[1770642666801,3.42982377,2040.8,2039.5,3.5545363]
[1770642667001,3.42982377,2040.8,2039.7,3.5545363]
[1770642667200,3.42982377,2040.8,2039.6,23.724]
[1770642667201,3.42982377,2040.8,2039.9,3.5545363]
[1770642667394,43.70316006,2041.9,2040.3,3.5545363]
[1770642667596,3.42982377,2042.0,2041.2,3.5545363]
[1770642667797,3.43424007,2042.0,2041.2,3.55867351]
[1770642668301,0.0044163,2042.0,2041.4,3.5545363]
[1770642668508,37.7631,2043.2,2041.4,3.5545363]
[1770642668509,3.42982377,2043.2,2041.9,6.02955]
[1770642668711,3.42982377,2043.2,2042.2,3.5545363]
[1770642669006,3.42982377,2043.0,2042.2,3.5545363]
[1770642669206,3.42982377,2044.1,2042.8,3.5545363]
[1770642669398,3.42982377,2044.1,2042.4,3.5545363]
[1770642669596,3.43560903,2044.1,2043.1,3.5545363]
[1770642669798,0.13813599,2044.7,2043.7,3.5545363]
[1770642670007,3.42982377,2045.6,2044.1,3.5545363]
[1770642670299,3.42982377,2045.6,2043.1,6.02594]
[1770642670300,3.42982377,2044.7,2043.8,9.98530501]
[1770642670500,3.42982377,2044.6,2043.8,9.98530501]
[1770642670701,3.42982377,2044.1,2043.3,6.43076871]
[1770642670899,3.42982377,2043.6,2043.2,6.43076871]
[1770642671096,3.42982377,2043.6,2041.4,6.33512852]
[1770642671097,6.02574,2043.3,2042.4,3.5545363]
[1770642671300,0.24494,2043.3,2041.6,3.5545363]
[1770642671501,37.74514,2043.8,2042.0,3.5545363]
[1770642671697,5.64014,2043.8,2042.0,3.5545363]
[1770642671996,5.19997265,2043.9,2042.2,3.5545363]
[1770642672197,5.19997265,2043.9,2042.1,6.30354012]
[1770642672198,5.72673868,2044.9,2043.3,6.02557]
[1770642672506,5.72673868,2044.9,2043.4,6.46111743]
[1770642672700,0.02938551,2044.3,2043.4,10.01565373]
[1770642672895,0.02938551,2044.3,2042.1,6.02887]
[1770642673107,0.01038852,2044.2,2042.4,3.5545363]
[1770642673398,0.01038852,2044.2,2042.9,3.5545363]
[1770642673399,0.01624029,2044.2,2042.9,3.5545363]
[1770642673904,0.01624029,2044.2,2043.1,3.5545363]
[1770642674103,0.00585177,2044.2,2043.1,3.5545363]
[1770642674703,0.00585177,2044.2,2043.3,3.5545363]
[1770642675006,0.03523728,2044.2,2043.3,3.5545363]
[1770642675395,5.72673868,2044.9,2044.0,2.81202674]
[1770642675605,4.73259045,2044.9,2044.2,2.81202674]
[1770642676205,0.02938551,2044.8,2044.2,2.81202674]
[1770642676401,6.02477074,2044.8,2042.8,2.77871403]
[1770642676608,2.8950026,2044.6,2042.8,2.77871403]
[1770642676909,2.8950026,2044.6,2042.4,6.02819]
[1770642676910,0.02938551,2044.4,2043.0,2.77871403]
[1770642677404,0.24477,2044.7,2043.2,2.8252409]
[1770642677806,0.02938551,2044.5,2043.4,2.8252409]
[1770642678307,0.02938551,2043.7,2043.2,2.88071243]
[1770642678507,45.99997265,2044.4,2043.2,2.88071243]
[1770642679008,0.02938551,2043.8,2042.9,2.9805947]
[1770642679411,0.02938551,2043.5,2042.9,2.9805947]
[1770642679609,6.02279,2044.3,2042.9,2.9805947]
[1770642679808,0.02938551,2043.8,2042.9,2.9805947]
[1770642680206,5.10499114,2044.2,2042.9,2.9805947]
[1770642680909,0.02938551,2043.8,2042.9,2.9805947]
[1770642681314,0.02938551,2043.4,2042.9,2.9805947]
[1770642681505,2.8950026,2044.1,2042.9,2.9805947]
[1770642681707,0.09498151,2044.0,2042.9,2.9805947]
[1770642681911,0.02938551,2044.2,2043.1,3.05516677]
[1770642682114,0.24482,2044.3,2043.1,3.05516677]
[1770642682408,40.8,2044.4,2043.1,3.05516677]
[1770642682614,40.8,2044.4,2043.3,3.05351617]
[1770642682911,4.97734045,2044.9,2043.3,3.05351617]
[1770642683106,0.02938551,2044.7,2043.5,3.05351617]
[1770642683311,40.8,2044.6,2043.5,3.05351617]
[1770642683619,40.8,2044.6,2043.7,3.05351617]
[1770642684114,0.02938551,2044.4,2043.7,3.05351617]
[1770642684315,40.8,2044.6,2043.7,3.05351617]
[1770642684817,0.02938551,2044.3,2043.7,3.05351617]
[1770642685507,0.02938551,2044.3,2042.7,0.24501]
[1770642685715,43.9397926,2044.6,2042.9,3.01188149]
[1770642685912,43.9397926,2044.6,2043.0,3.01188149]
[1770642686114,0.02938551,2044.5,2043.0,3.01188149]
[1770642686613,0.02938551,2044.1,2043.0,3.01188149]
[1770642687111,0.24481,2044.4,2043.0,3.01188149]
[1770642687414,0.02938551,2044.3,2043.0,3.01188149]
[1770642688412,0.02938551,2044.3,2043.1,0.24496]
[1770642688613,0.00360074,2044.8,2043.3,0.24494]
[1770642688910,0.03298625,2044.8,2043.6,3.00307168]
[1770642689117,40.8,2044.7,2043.6,3.00307168]
[1770642689413,0.02938551,2044.6,2043.6,3.00307168]
[1770642689811,0.24479,2044.6,2043.6,3.00307168]
[1770642690012,0.02938551,2044.3,2043.6,3.00307168]
[1770642691310,0.24479,2044.6,2043.6,3.00307168]
[1770642692214,0.02938551,2044.3,2043.6,3.00307168]
[1770642692413,0.24479,2044.6,2043.6,3.00307168]
[1770642692613,0.02938551,2044.3,2043.6,3.00307168]
[1770642693411,0.02938551,2044.0,2043.6,3.00307168]
[1770642694218,0.24479,2044.6,2043.6,3.00307168]
[1770642694409,2.8758055,2044.1,2042.9,2.98939853]
[1770642695117,0.24485,2044.0,2042.9,2.98939853]
[1770642696119,0.24489,2043.7,2042.9,2.98939853]
[1770642696509,40.8,2043.6,2042.9,2.48079853]
[1770642696712,0.24491,2043.5,2042.9,2.48079853]
[1770642697108,40.8,2043.6,2042.9,2.48079853]
[1770642697715,5.78780839,2044.2,2042.9,2.48079853]
[1770642697716,2.85076356,2044.2,2042.9,2.48079853]
[1770642697911,2.85076356,2044.3,2043.1,2.73362575]
[1770642698116,40.8,2044.2,2043.1,2.73362575]
[1770642699019,0.24484,2044.1,2043.1,2.73362575]
[1770642699217,43.65076356,2044.2,2043.1,2.73362575]
[1770642699411,40.8,2044.2,2043.1,2.73362575]
[1770642699916,2.85076356,2044.4,2043.3,2.71698551]
[1770642700116,5.78780839,2044.7,2043.3,2.71698551]
[1770642700117,2.85076356,2044.7,2043.3,2.71698551]
[1770642700318,2.85076356,2044.6,2043.3,2.71698551]
[1770642700515,43.65076356,2044.6,2043.3,2.71698551]
[1770642701825,5.72656906,2044.4,2043.3,2.71698551]
[1770642702119,2.85076356,2044.3,2043.3,2.71698551]
[1770642702325,2.85076356,2044.2,2043.3,2.71698551]
[1770642702915,3.09563356,2043.9,2042.9,2.72424107]
[1770642703123,2.85076356,2043.8,2042.9,2.72424107]
[1770642703622,2.85076356,2043.9,2042.9,2.72424107]
[1770642703822,2.85076356,2044.1,2042.9,2.72424107]
[1770642704022,3.09562356,2044.0,2042.9,2.72424107]
[1770642704221,2.85076356,2043.9,2042.9,2.72424107]
[1770642705127,2.85076356,2043.7,2042.8,0.00463901]
[1770642705323,2.85076356,2043.5,2042.7,2.72399296]
[1770642706030,40.8,2043.4,2042.7,2.72399296]
[1770642706430,40.8,2043.4,2042.7,2.72958831]
[1770642707520,2.85076356,2043.8,2042.7,2.72958831]
[1770642708530,2.85076356,2043.8,2042.9,2.7287424]
[1770642708741,2.85076356,2044.2,2043.0,2.7287424]
[1770642709037,2.85076356,2044.3,2043.1,2.7287424]
[1770642709337,40.8,2044.2,2043.1,2.7287424]
[1770642710330,40.8,2044.2,2043.2,2.72920146]
[1770642712535,45.87765464,2044.1,2043.2,2.72920146]
[1770642712939,45.87765464,2044.1,2042.7,2.82983286]
[1770642712940,43.00187914,2043.9,2043.0,2.72350661]
[1770642713536,42.75700914,2044.0,2043.0,2.72350661]
[1770642713940,43.00185914,2044.0,2043.0,2.72350661]
[1770642714138,42.75700914,2043.9,2043.0,2.72350661]
[1770642715643,42.75700914,2044.0,2043.0,2.72350661]
[1770642718347,42.75700914,2043.9,2043.0,2.72350661]
[1770642718846,0.24488,2043.8,2042.7,2.72681712]
[1770642719041,42.75700914,2043.4,2042.7,2.72681712]
[1770642720346,42.75700914,2043.5,2042.7,2.72681712]
[1770642720549,42.75700914,2043.6,2042.7,2.72681712]
[1770642722247,42.75700914,2043.5,2042.7,2.72681712]
[1770642723246,43.00192914,2043.5,2042.7,2.72681712]
[1770642723949,43.00192914,2043.5,2042.7,0.00559535]
[1770642724150,42.75700914,2043.2,2042.5,2.70998872]
[1770642724454,42.75700914,2043.3,2042.5,2.70998872]
[1770642724948,42.75700914,2043.4,2042.5,2.70998872]
[1770642725144,42.76223062,2043.4,2042.5,2.71536985]
[1770642726060,45.87775464,2043.3,2042.5,0.00538113]
[1770642726354,42.75700914,2043.2,2042.3,2.70983297]
[1770642726552,0.24497,2043.0,2041.8,2.70983297]
[1770642726746,42.75700914,2042.9,2041.8,2.70983297]
[1770642727153,47.95698179,2042.9,2041.8,2.70983297]
[1770642727478,42.75700914,2042.9,2041.8,2.71543567]
[1770642727653,43.00200914,2042.8,2041.8,2.71543567]
[1770642727855,42.75700914,2042.7,2041.8,2.71543567]
[1770642728052,42.75700914,2042.8,2041.8,2.71543567]
[1770642728250,42.75700914,2042.9,2041.8,2.71543567]
[1770642729656,42.75700914,2043.0,2041.8,2.71543567]
[1770642730052,42.75700914,2042.9,2041.8,2.71543567]
[1770642730454,42.75700914,2043.0,2041.8,2.71543567]
[1770642731159,42.75700914,2042.9,2041.8,2.71543567]
[1770642731361,42.75700914,2043.0,2041.8,2.71543567]
[1770642732154,42.75700914,2042.9,2041.8,2.71543567]
[1770642732462,42.75700914,2043.0,2041.8,2.71543567]
[1770642734259,115.21700914,2043.1,2041.8,2.71543567]